bitfinex/quotes_BTCUSD_20250213
["timestamp","ask_amount","ask_price","bid_price","bid_amount"]
[1739477121973,0.208302,96015.0,96011.0,0.005]
[1739477122269,0.2084033,96017.0,96012.0,0.10250365]
[1739477122469,0.156227,96014.0,96013.0,0.01559037]
[1739477123211,0.2084033,96017.0,96013.0,0.19319402]
[1739477123212,0.0001063,96017.0,96013.0,0.19319402]
[1739477123455,0.0001063,96017.0,96014.0,0.10250365]
[1739477124135,0.1563293,96017.0,96014.0,0.10250365]
[1739477124540,0.156225,96015.0,96014.0,0.10250365]
[1739477124750,0.156225,96015.0,96014.0,0.12746305]
[1739477124956,0.156225,96015.0,96014.0,0.0249594]
[1739477125156,0.156225,96016.0,96014.0,0.0249594]
[1739477125377,0.156225,96015.0,96014.0,0.0249594]
[1739477126263,0.156225,96015.0,96014.0,0.0319594]
[1739477126466,0.156225,96015.0,96014.0,0.0279594]
[1739477126675,0.156225,96015.0,96014.0,0.0289594]
[1739477126837,0.156225,96015.0,96014.0,0.0329594]
[1739477127237,0.2084033,96017.0,96014.0,0.0329594]
[1739477127238,0.0001063,96017.0,96014.0,0.0329594]
[1739477127479,0.0001063,96017.0,96015.0,0.00813594]
[1739477129640,0.0001063,96017.0,96015.0,0.01213594]
[1739477130260,0.0001063,96017.0,96015.0,0.01513594]
[1739477132429,0.0001063,96017.0,96016.0,0.25872665]
[1739477132629,0.0001063,96017.0,96016.0,0.33842665]
[1739477132842,0.0001063,96017.0,96016.0,0.4409303]
[1739477133376,3e-07,96017.0,96016.0,0.6379303]
[1739477133628,0.0005065,96049.0,96026.0,0.432907]
[1739477133828,0.0149464,96027.0,96026.0,0.59953025]
[1739477135839,0.0149464,96027.0,96026.0,0.60453025]
[1739477136217,0.0149464,96027.0,96026.0,0.60653025]
[1739477136611,0.0150527,96027.0,96026.0,0.61353025]
[1739477136790,0.0150527,96027.0,96026.0,0.59953025]
[1739477136994,0.0150527,96027.0,96026.0,0.60653025]
[1739477137193,0.0150527,96027.0,96026.0,0.61353025]
[1739477137416,0.0150527,96027.0,96026.0,0.60653025]
[1739477138616,0.0150527,96027.0,96026.0,0.59953025]
[1739477138770,0.0150527,96027.0,96026.0,0.61353025]
[1739477138983,0.0150527,96027.0,96026.0,0.60653025]
[1739477139188,0.0150527,96027.0,96026.0,0.59953025]
[1739477139432,0.0150527,96027.0,96026.0,0.60653025]
[1739477139747,0.0150527,96027.0,96026.0,0.59953025]
[1739477139948,0.0150527,96027.0,96026.0,0.60653025]
[1739477140237,0.0150527,96027.0,96026.0,0.61353025]
[1739477141440,0.0005065,96049.0,96027.0,0.24245562]
[1739477141620,0.00063827,96049.0,96048.0,0.428371]
[1739477141835,0.00063827,96049.0,96048.0,0.53087465]
[1739477143082,0.00063827,96049.0,96048.0,0.23170365]
[1739477143283,0.15680827,96049.0,96048.0,0.10950365]
[1739477143494,0.15680827,96049.0,96048.0,0.014]
[1739477145496,0.17180827,96049.0,96048.0,0.014]
[1739477146084,0.17180827,96049.0,96048.0,0.007]
[1739477146312,0.156201,96030.0,96028.0,0.23354481]
[1739477146559,0.20824,96043.0,96029.0,0.2050073]
[1739477146990,0.01563827,96049.0,96029.0,0.2050073]
[1739477146991,0.01563827,96049.0,96029.0,0.10250365]
[1739477147309,0.156193,96035.0,96029.0,0.10250365]
[1739477147693,0.01563827,96049.0,96029.0,0.10250365]
[1739477147694,0.156194,96034.0,96029.0,0.10250365]
[1739477148002,0.01563827,96049.0,96029.0,0.10250365]
[1739477148152,0.156201,96030.0,96029.0,0.10850365]
[1739477148358,0.156201,96031.0,96029.0,0.12567402]
[1739477148566,0.01563827,96049.0,96029.0,0.12567402]
[1739477148762,0.01563827,96049.0,96029.0,0.13267402]
[1739477148970,0.0001063,96031.0,96029.0,0.12567402]
[1739477149242,0.0001063,96031.0,96029.0,0.13967402]
[1739477149438,0.0001063,96031.0,96030.0,0.0262874]
[1739477149639,0.0001063,96031.0,96030.0,0.12879105]
[1739477150058,0.1563053,96031.0,96030.0,0.12879105]
[1739477150272,0.1563053,96031.0,96030.0,0.10250365]
[1739477151498,0.1563053,96031.0,96030.0,0.10950365]
[1739477151801,0.1563053,96031.0,96030.0,0.007]
[1739477152432,0.1563053,96031.0,96030.0,0.014]
[1739477152817,0.1563053,96031.0,96016.0,0.0466]
[1739477152818,0.156214,96022.0,96016.0,0.0466]
[1739477153020,0.156214,96022.0,96017.0,0.2050073]
[1739477153258,0.20828,96025.0,96017.0,0.2050073]
[1739477153810,0.15622,96018.0,96017.0,0.2050073]
[1739477154210,0.20828,96025.0,96017.0,0.2050073]
[1739477154606,0.156214,96022.0,96017.0,0.2050073]
[1739477154766,0.156215,96022.0,96018.0,0.10250365]
[1739477154976,0.156215,96021.0,96019.0,0.10250365]
[1739477155876,0.156217,96020.0,96019.0,0.10250365]
[1739477156414,0.156217,96020.0,96019.0,0.10850365]
[1739477156624,0.156217,96020.0,96019.0,0.15151475]
[1739477157403,0.156217,96020.0,96019.0,0.14551475]
[1739477157606,0.17333742,96020.0,96019.0,0.14551475]
[1739477160620,0.17333742,96020.0,96019.0,0.15273798]
[1739477161018,0.17333742,96020.0,96019.0,0.01422323]
[1739477162468,0.17333742,96020.0,96019.0,0.00722323]
[1739477162662,0.17333742,96020.0,96019.0,0.00022323]
[1739477163101,0.17333742,96020.0,96019.0,0.00422323]
[1739477163940,0.17333742,96020.0,96019.0,0.00300001]
[1739477164139,0.19633742,96020.0,96019.0,0.00300001]
[1739477165000,0.19633742,96020.0,96019.0,1e-08]
[1739477165196,0.04012042,96020.0,96011.0,1.0]
[1739477165374,0.15623,96012.0,96011.0,1.0]
[1739477167659,0.15723,96012.0,96011.0,1.0]
[1739477171749,0.15723,96012.0,96011.0,1.00022365]
[1739477178681,0.001,96012.0,96011.0,1.02262368]
[1739477178884,0.001,96012.0,96011.0,1.40915933]
[1739477179283,0.001,96012.0,96011.0,1.55915933]
[1739477179806,0.01712042,96020.0,96012.0,0.15]
[1739477180007,0.0001065,96027.0,96026.0,0.156207]
[1739477180210,0.01586767,96027.0,96026.0,0.40213135]
[1739477180413,0.0001065,96027.0,96026.0,0.40213135]
[1739477181035,0.01529564,96027.0,96026.0,0.40913135]
[1739477181210,0.0001065,96027.0,96026.0,0.40913135]
[1739477181415,0.0011065,96027.0,96026.0,0.41613135]
[1739477181836,0.0011065,96027.0,96026.0,0.56613135]
[1739477183673,0.0011065,96027.0,96026.0,0.5739171]
[1739477185147,0.0011065,96027.0,96026.0,0.56613135]
[1739477186444,0.0011065,96027.0,96026.0,0.55913135]
[1739477186648,0.0001065,96027.0,96026.0,0.55213135]
[1739477186858,0.0001065,96027.0,96026.0,0.56613135]
[1739477187025,0.0011065,96027.0,96026.0,0.56613135]
[1739477187225,0.0001065,96027.0,96026.0,0.55913135]
[1739477187479,0.0001065,96027.0,96026.0,0.56613135]
[1739477187660,0.0011065,96027.0,96026.0,0.56613135]
[1739477188038,0.0011065,96027.0,96026.0,0.55913135]
[1739477188467,0.0011065,96027.0,96026.0,0.56613135]
[1739477189540,0.11721231,96048.0,96027.0,0.15]
[1739477189717,0.156177,96045.0,96037.0,0.156188]
[1739477189922,0.01639383,96049.0,96038.0,0.10250365]
[1739477190614,0.01639383,96049.0,96039.0,0.1305]
[1739477190815,0.17256483,96049.0,96040.0,0.25868765]
[1739477191017,0.156172,96048.0,96041.0,0.05974377]
[1739477191166,0.156172,96048.0,96042.0,0.10250365]
[1739477191847,0.01639383,96049.0,96042.0,0.10250365]
[1739477192095,0.208233,96047.0,96042.0,0.10250365]
[1739477192327,0.156179,96044.0,96042.0,0.10250365]
[1739477192571,0.01639383,96049.0,96043.0,0.02987474]
[1739477192903,0.156175,96046.0,96044.0,0.10250365]
[1739477193039,0.208229,96048.0,96044.0,0.10250365]
[1739477193237,0.156175,96046.0,96044.0,0.10250365]
[1739477193464,0.156173,96048.0,96044.0,0.10250365]
[1739477193621,0.156173,96048.0,96042.0,0.008]
[1739477193622,0.15618,96043.0,96042.0,0.008]
[1739477193827,0.15618,96043.0,96042.0,0.004]
[1739477194067,0.156184,96040.0,96039.0,0.1305]
[1739477194284,0.01639383,96049.0,96043.0,0.003]
[1739477194285,0.156178,96044.0,96043.0,0.003]
[1739477194626,0.01639383,96049.0,96042.0,0.005]
[1739477194917,0.15618,96043.0,96042.0,0.005]
[1739477195020,0.208231,96047.0,96039.0,0.1305]
[1739477195021,0.156182,96042.0,96039.0,0.1305]
[1739477195641,0.22462183,96049.0,96039.0,0.1305]
[1739477195871,0.0001065,96048.0,96040.0,0.033876]
[1739477196072,0.208231,96047.0,96039.0,0.1305]
[1739477196298,0.156181,96043.0,96042.0,0.006]
[1739477196695,0.156184,96040.0,96039.0,0.1305]
[1739477196899,0.156184,96041.0,96040.0,0.004]
[1739477197119,0.0001065,96048.0,96040.0,0.02045]
[1739477197494,0.208231,96047.0,96040.0,0.01345]
[1739477197694,0.156184,96040.0,96039.0,0.1305]
[1739477198041,0.156184,96040.0,96039.0,0.007]
[1739477199437,0.0001065,96048.0,96032.0,0.0828]
[1739477199438,0.156196,96033.0,96032.0,0.0828]
[1739477199640,0.208233,96046.0,96032.0,0.18530365]
[1739477199641,0.156194,96035.0,96032.0,0.18530365]
[1739477199837,0.0001065,96048.0,96033.0,0.12580401]
[1739477199838,0.156195,96034.0,96033.0,0.12580401]
[1739477200584,0.0001065,96048.0,96033.0,0.12580401]
[1739477200725,0.156182,96042.0,96033.0,0.12580401]
[1739477200925,0.0001065,96048.0,96033.0,0.13080401]
[1739477201130,0.0001065,96048.0,96033.0,0.13680401]
[1739477201367,0.0001065,96048.0,96034.0,0.0267304]
[1739477201611,0.156177,96045.0,96035.0,0.25869665]
[1739477201768,0.0001065,96048.0,96035.0,0.10250365]
[1739477201967,0.0001065,96048.0,96036.0,0.156189]
[1739477202174,0.156176,96045.0,96037.0,0.10250365]
[1739477202370,0.0001065,96048.0,96040.0,0.0797]
[1739477202715,0.0001065,96048.0,96044.0,0.156176]
[1739477202835,0.0001065,96048.0,96044.0,0.0767]
[1739477203035,0.0001065,96048.0,96044.0,0.232878]
[1739477203257,0.0001065,96048.0,96046.0,0.156174]
[1739477203467,0.0001065,96048.0,96047.0,0.33386261]
[1739477203673,0.0001065,96048.0,96047.0,0.46246261]
[1739477204542,0.0001065,96048.0,96047.0,0.30728961]
[1739477205736,0.0001065,96048.0,96047.0,0.31228961]
[1739477206093,0.0001065,96048.0,96047.0,0.31728961]
[1739477209782,0.0001065,96048.0,96020.0,0.0497]
[1739477209783,0.208231,96047.0,96020.0,0.0497]
[1739477210001,0.208231,96047.0,96011.0,1.00022365]
[1739477210002,0.15623,96012.0,96011.0,1.00022365]
[1739477210571,0.01,96047.0,96011.0,1.00022365]
[1739477210790,0.156228,96013.0,96012.0,0.10250365]
[1739477210911,0.156228,96013.0,96011.0,1.00022365]
[1739477211120,0.156229,96013.0,96011.0,1.1027273]
[1739477211321,0.208246,96040.0,96011.0,1.1027273]
[1739477211524,0.156225,96015.0,96011.0,1.1027273]
[1739477211725,0.08354481,96038.0,96011.0,1.1031668]
[1739477211927,0.156215,96021.0,96020.0,0.001]
[1739477212358,0.156228,96013.0,96012.0,0.10250365]
[1739477213404,0.156228,96013.0,96012.0,0.10450365]
[1739477214971,0.156228,96013.0,96012.0,0.002]
[1739477215182,0.156228,96013.0,96012.0,0.005]
[1739477215356,0.208302,96015.0,96011.0,1.00066315]
[1739477215560,0.15623,96012.0,96011.0,1.00066315]
[1739477218162,0.15623,96012.0,96011.0,1.00166315]
[1739477218596,0.15623,96012.0,96011.0,1.00266315]
[1739477219498,0.15623,96012.0,96011.0,1.10295179]
[1739477219870,0.15623,96012.0,96011.0,1.00266315]
[1739477220191,0.02134635,96023.0,96011.0,1.1051668]
[1739477220390,0.05264882,96087.0,96011.0,1.1051668]
[1739477220391,0.208273,96028.0,96013.0,0.0823]
[1739477220729,0.208281,96024.0,96014.0,0.10250365]
[1739477220966,0.208273,96028.0,96014.0,0.10250365]
[1739477221178,0.156224,96016.0,96014.0,0.10250365]
[1739477221358,0.003,96023.0,96017.0,0.156221]
[1739477221560,0.003,96023.0,96018.0,0.10250365]
[1739477221788,0.156219,96019.0,96018.0,0.10250365]
[1739477221987,0.156219,96019.0,96011.0,1.00066315]
[1739477221988,0.15623,96012.0,96011.0,1.00066315]
[1739477222187,0.15623,96012.0,96011.0,0.92351617]
[1739477223020,0.15623,96012.0,96011.0,0.9510871]
[1739477224440,0.15623,96012.0,96011.0,0.92451617]
[1739477224814,0.15623,96012.0,96011.0,0.92551617]
[1739477227701,0.22457727,96035.0,96012.0,0.0781]
[1739477227881,0.09980687,96049.0,96013.0,0.14840365]
[1739477228349,0.156217,96021.0,96013.0,0.14840365]
[1739477228532,0.208239,96044.0,96014.0,0.25873065]
[1739477228710,0.156213,96023.0,96016.0,0.156223]
[1739477228910,0.208279,96025.0,96017.0,0.10250365]
[1739477229113,0.003,96026.0,96017.0,0.10250365]
[1739477229316,0.156214,96023.0,96017.0,0.10250365]
[1739477229660,0.156216,96021.0,96018.0,0.10250365]
[1739477229849,0.156216,96021.0,96019.0,0.10250365]
[1739477230067,0.208281,96024.0,96019.0,0.10250365]
[1739477230552,0.156214,96023.0,96019.0,0.10250365]
[1739477231334,0.003,96024.0,96023.0,0.156212]
[1739477231584,0.003,96024.0,96023.0,0.34943758]
[1739477231826,0.156195,96034.0,96024.0,0.208281]
[1739477232066,0.156198,96032.0,96025.0,0.25871165]
[1739477232331,0.08365131,96048.0,96025.0,0.10250365]
[1739477232854,0.156207,96027.0,96025.0,0.10250365]
[1739477233096,0.156207,96027.0,96026.0,0.01838558]
[1739477233337,0.156207,96027.0,96026.0,0.12088923]
[1739477234323,0.0001065,96048.0,96026.0,0.12088923]
[1739477234566,0.0001065,96048.0,96027.0,0.17930365]
[1739477234816,0.156204,96028.0,96027.0,0.17930365]
[1739477235073,0.156204,96028.0,96027.0,0.20426257]
[1739477235335,0.0001065,96048.0,96027.0,0.20426257]
[1739477235547,0.0071065,96048.0,96027.0,0.20426257]
[1739477235794,0.156199,96031.0,96027.0,0.20426257]
[1739477236026,0.156198,96032.0,96027.0,0.20426257]
[1739477236226,0.208257,96036.0,96028.0,0.06156526]
[1739477236466,0.0041065,96048.0,96030.0,0.0817]
[1739477236691,0.0041065,96048.0,96031.0,0.14910365]
[1739477236936,0.156189,96037.0,96031.0,0.14910365]
[1739477237177,0.0001065,96048.0,96031.0,0.14910365]
[1739477237416,0.156192,96036.0,96032.0,0.02597626]
[1739477237654,0.208233,96046.0,96033.0,0.10250365]
[1739477237879,0.156192,96036.0,96033.0,0.10250365]
[1739477239302,0.211233,96046.0,96033.0,0.10250365]
[1739477239538,0.003,96046.0,96045.0,0.156176]
[1739477239770,0.003,96046.0,96045.0,0.24982125]
[1739477239995,0.159175,96046.0,96045.0,0.23420365]
[1739477240201,0.156175,96046.0,96045.0,0.23420365]
[1739477240609,0.160175,96046.0,96045.0,0.23420365]
[1739477241031,0.156175,96046.0,96045.0,0.23420365]
[1739477241235,0.156175,96046.0,96045.0,0.23520365]
[1739477241459,0.156175,96046.0,96045.0,0.23620365]
[1739477243529,0.156175,96046.0,96045.0,0.0517]
[1739477243734,0.156175,96046.0,96045.0,0.002]
[1739477244482,0.156175,96046.0,96045.0,0.001]
[1739477244689,0.156186,96039.0,96038.0,0.0818]
[1739477244889,0.156186,96039.0,96038.0,0.19741365]
[1739477245814,0.156186,96039.0,96038.0,0.19841365]
[1739477246615,0.156186,96039.0,96038.0,0.19941365]
[1739477247224,0.208234,96046.0,96038.0,0.19941365]
[1739477247434,0.156186,96039.0,96038.0,0.19941365]
[1739477248355,0.156186,96039.0,96038.0,0.18530365]
[1739477249985,0.156186,96039.0,96038.0,0.001]
[1739477250831,0.07854803,96041.0,96038.0,0.002]
[1739477251054,0.156186,96039.0,96038.0,0.002]
[1739477251252,0.156206,96027.0,96026.0,0.0765]
[1739477252226,0.156206,96027.0,96026.0,0.12134]
[1739477253445,0.156206,96027.0,96026.0,0.12634]
[1739477253681,0.156206,96027.0,96026.0,0.005]
[1739477254088,0.156206,96027.0,96026.0,0.009]
[1739477255927,0.156206,96027.0,96026.0,0.005]
[1739477256309,0.156206,96027.0,96026.0,0.006]
[1739477256658,0.156206,96027.0,96026.0,0.001]
[1739477257294,0.156206,96027.0,96026.0,0.00882]
[1739477258288,0.208272,96029.0,96011.0,0.92307667]
[1739477258496,0.15623,96012.0,96011.0,0.92307667]
[1739477259727,0.15623,96012.0,96011.0,0.92507667]
[1739477260066,0.15623,96012.0,96011.0,1.02758032]
[1739477261285,0.15623,96012.0,96011.0,1.03058032]
[1739477261494,0.15623,96012.0,96011.0,0.92807667]
[1739477263028,0.15623,96012.0,96011.0,0.92607667]
[1739477263231,0.15623,96012.0,96011.0,0.92307667]
[1739477268440,0.208255,96036.0,96011.0,1.02558032]
[1739477268643,0.156228,96013.0,96012.0,0.10250365]
[1739477270525,0.157228,96013.0,96012.0,0.10250365]
[1739477272067,0.157228,96013.0,96011.0,1.02558032]
[1739477272068,0.15623,96012.0,96011.0,0.92307667]
[1739477277307,0.15923,96012.0,96011.0,0.92307667]
[1739477278247,0.16223,96012.0,96011.0,0.92307667]
[1739477278871,0.16523,96012.0,96011.0,0.92307667]
[1739477281135,0.208302,96015.0,96011.0,0.92307667]
[1739477281360,0.15623,96012.0,96011.0,0.92307667]
[1739477283104,0.15923,96012.0,96011.0,0.92307667]
[1739477283446,0.16223,96012.0,96011.0,0.92307667]
[1739477284020,0.16223,96012.0,96011.0,0.9410228]
[1739477284440,0.16223,96012.0,96011.0,0.92307667]
[1739477291959,0.18523,96012.0,96011.0,0.92307667]
[1739477293865,0.16223,96012.0,96011.0,0.92307667]
[1739477294617,0.16223,96012.0,96011.0,1.05187667]
[1739477296751,0.16223,96012.0,96011.0,0.92307667]
[1739477303331,0.16223,96012.0,96011.0,0.88564149]
[1739477305418,0.16223,96012.0,96011.0,0.96814149]
[1739477305632,0.16223,96012.0,96011.0,1.06497796]
[1739477305907,0.16223,96012.0,96011.0,1.01674149]
[1739477306629,0.006,96012.0,96011.0,1.01674149]
[1739477307517,0.006,96012.0,96011.0,1.17297349]
[1739477308348,0.006,96012.0,96011.0,1.01674149]
[1739477308766,0.006,96012.0,96011.0,1.11924514]
[1739477308767,0.15923,96012.0,96011.0,1.11924514]
[1739477308979,0.003,96012.0,96011.0,1.37798079]
[1739477309242,0.003,96012.0,96011.0,1.38298079]
[1739477310100,0.0001066,96014.0,96013.0,0.156228]
[1739477310310,0.0001066,96014.0,96013.0,0.6387353]
[1739477310744,0.208193,96065.0,96025.0,0.433709]
[1739477310956,0.01,96075.0,96025.0,0.53621265]
[1739477311195,0.208205,96059.0,96025.0,0.53621265]
[1739477311410,0.2083375,96048.0,96025.0,0.53621265]
[1739477311620,0.0001065,96048.0,96025.0,0.53621265]
[1739477311864,0.156188,96039.0,96025.0,0.53621265]
[1739477312277,0.156188,96039.0,96025.0,0.54321265]
[1739477312493,0.156188,96038.0,96025.0,0.60542016]
[1739477312703,0.208242,96042.0,96025.0,0.60542016]
[1739477312887,0.156189,96038.0,96025.0,0.60542016]
[1739477313039,0.15619,96037.0,96025.0,0.60542016]
[1739477313648,0.208259,96035.0,96025.0,0.44921116]
[1739477313879,0.208266,96031.0,96025.0,0.44921116]
[1739477314078,0.208266,96031.0,96025.0,0.29921116]
[1739477314079,0.1563135,96026.0,96025.0,0.29921116]
[1739477314255,0.1563135,96026.0,96025.0,0.23700365]
[1739477314466,0.1563135,96026.0,96025.0,0.24400365]
[1739477314868,0.1563135,96026.0,96025.0,0.1415]
[1739477315458,0.1563135,96026.0,96025.0,0.063]
[1739477315669,0.1563135,96026.0,96025.0,0.014]
[1739477315876,0.1563135,96026.0,96020.0,0.075]
[1739477316090,0.156215,96021.0,96020.0,0.075]
[1739477318106,0.156223,96016.0,96015.0,0.0464]
[1739477319350,0.156223,96016.0,96015.0,0.0474]
[1739477319633,0.156223,96016.0,96015.0,0.07216813]
[1739477320401,0.156223,96016.0,96015.0,0.0474]
[1739477320600,0.156223,96016.0,96015.0,0.0464]
[1739477320801,0.156223,96016.0,96015.0,0.0484]
[1739477321002,0.156223,96016.0,96015.0,0.0474]
[1739477321232,0.156223,96016.0,96015.0,0.0484]
[1739477321596,0.156223,96016.0,96015.0,0.0474]
[1739477322030,0.156223,96016.0,96015.0,0.14758647]
[1739477322447,0.157223,96016.0,96015.0,0.14758647]
[1739477324013,0.001,96016.0,96015.0,0.14758647]
[1739477324225,0.001,96016.0,96015.0,0.25009012]
[1739477324428,0.001,96016.0,96015.0,0.32679012]
[1739477325874,0.001,96016.0,96015.0,0.48301512]
[1739477326052,0.001,96016.0,96015.0,0.32679012]
[1739477326979,0.156223,96016.0,96015.0,0.32679012]
[1739477327155,0.1563295,96016.0,96015.0,0.32679012]
[1739477327355,0.0011065,96016.0,96015.0,0.32679012]
[1739477327555,0.0011065,96016.0,96015.0,0.33079012]
[1739477327783,0.0001065,96016.0,96015.0,0.33079012]
[1739477327991,0.0001065,96016.0,96015.0,0.33479012]
[1739477329060,0.1563295,96016.0,96015.0,0.33479012]
[1739477330002,0.0001065,96016.0,96015.0,0.33479012]
[1739477330425,0.0001065,96016.0,96015.0,0.49101512]
[1739477332482,0.0001065,96016.0,96015.0,0.64101512]
[1739477333677,0.0001065,96016.0,96015.0,0.63701512]
[1739477333889,0.0001065,96016.0,96015.0,0.64080311]
[1739477334092,0.0001065,96016.0,96015.0,0.64480311]
[1739477334297,0.0001065,96016.0,96015.0,0.65180311]
[1739477334583,0.0001065,96016.0,96015.0,0.64780311]
[1739477335756,0.0001065,96016.0,96015.0,0.64701512]
[1739477336680,0.0001065,96016.0,96015.0,0.49079012]
[1739477337632,0.1563295,96016.0,96015.0,0.49079012]
[1739477338064,0.1563295,96016.0,96015.0,0.34079012]
[1739477338489,0.0001065,96016.0,96015.0,0.34079012]
[1739477338910,0.0001065,96016.0,96015.0,0.33379012]
[1739477339328,0.0001065,96016.0,96015.0,0.33779012]
[1739477339540,0.0001065,96016.0,96015.0,0.33079012]
[1739477339791,0.1563295,96016.0,96015.0,0.33479012]
[1739477340304,0.1563295,96016.0,96015.0,0.008]
[1739477341774,0.1563295,96016.0,96015.0,0.004]
[1739477342635,0.17416252,96016.0,96015.0,0.004]
[1739477343076,0.156225,96015.0,96014.0,0.00022365]
[1739477344574,0.156225,96015.0,96014.0,0.00122365]
[1739477344786,0.156225,96015.0,96014.0,0.09815249]
[1739477345203,0.156225,96015.0,96014.0,0.09915249]
[1739477345613,0.208295,96018.0,96014.0,0.09915249]
[1739477345841,0.156225,96015.0,96014.0,0.09915249]
[1739477346584,0.156225,96015.0,96014.0,0.09815249]
[1739477347729,0.01794333,96018.0,96015.0,0.0818]
[1739477347937,0.156216,96021.0,96016.0,0.10250365]
[1739477348145,0.208275,96027.0,96016.0,0.10250365]
[1739477348320,0.01641371,96021.0,96016.0,0.10250365]
[1739477348503,0.20826,96034.0,96017.0,0.10250365]
[1739477348889,0.20826,96034.0,96018.0,0.10250365]
[1739477349087,0.16675648,96040.0,96019.0,0.0818]
[1739477349088,0.22896421,96040.0,96019.0,0.0818]
[1739477349293,0.001,96021.0,96020.0,0.156216]
[1739477349750,0.208261,96034.0,96020.0,0.10250365]
[1739477349968,0.156196,96033.0,96025.0,0.156209]
[1739477350188,0.01763333,96026.0,96025.0,0.23110365]
[1739477350395,0.0011065,96026.0,96025.0,0.38731265]
[1739477350600,0.0011065,96026.0,96025.0,0.23110365]
[1739477351015,0.0021065,96026.0,96025.0,0.23110365]
[1739477351247,0.0021065,96026.0,96025.0,0.24154062]
[1739477351774,0.0011065,96026.0,96025.0,0.24154062]
[1739477352285,0.0001065,96026.0,96025.0,0.24154062]
[1739477352895,0.0001065,96026.0,96025.0,0.24554062]
[1739477353105,0.01603218,96026.0,96025.0,0.24554062]
[1739477353460,0.01603218,96026.0,96025.0,0.24954062]
[1739477353671,0.17223918,96026.0,96025.0,0.24954062]
[1739477354278,0.01603218,96026.0,96025.0,0.24954062]
[1739477358973,0.208261,96034.0,96025.0,0.24954062]
[1739477358974,0.156203,96029.0,96025.0,0.24954062]
[1739477359175,4.391e-05,96030.0,96026.0,0.14866656]
[1739477359460,0.156206,96027.0,96026.0,0.14866656]
[1739477359908,0.0159967,96030.0,96026.0,0.14866656]
[1739477360051,0.0159967,96030.0,96027.0,0.0347576]
[1739477360270,0.0159967,96030.0,96028.0,0.10250365]
[1739477360477,0.0159967,96030.0,96028.0,0.25870765]
[1739477360803,0.0159967,96030.0,96029.0,0.236302]
[1739477361010,0.0159967,96030.0,96029.0,0.33880565]
[1739477361332,0.0159967,96030.0,96029.0,0.24651087]
[1739477361509,0.0159967,96030.0,96029.0,0.40271287]
[1739477362487,0.0159967,96030.0,96029.0,0.40571287]
[1739477362944,0.0159967,96030.0,96029.0,0.45351287]
[1739477363145,0.0159967,96030.0,96029.0,0.45651287]
[1739477365813,0.0159967,96030.0,96029.0,0.30031087]
[1739477366502,0.0159967,96030.0,96029.0,0.23640365]
[1739477369989,0.1721977,96030.0,96029.0,0.23640365]
[1739477370243,0.0159967,96030.0,96029.0,0.23640365]
[1739477370831,0.1721977,96030.0,96029.0,0.23640365]
[1739477371004,0.0159967,96030.0,96029.0,0.23640365]
[1739477371205,0.0159967,96030.0,96029.0,0.26351978]
[1739477371629,0.1721977,96030.0,96029.0,0.26351978]
[1739477373276,0.0159967,96030.0,96029.0,0.26351978]
[1739477374020,0.0161032,96030.0,96029.0,0.26351978]
[1739477379468,0.1723042,96030.0,96029.0,0.26351978]
[1739477379677,0.0161032,96030.0,96029.0,0.26351978]
[1739477379882,0.1723042,96030.0,96029.0,0.26351978]
[1739477383351,0.0161032,96030.0,96029.0,0.26351978]
[1739477383865,0.1723042,96030.0,96029.0,0.26351978]
[1739477384616,0.1723042,96030.0,96029.0,0.16101613]
[1739477384817,0.1723042,96030.0,96029.0,0.1339]
[1739477386051,0.1723042,96030.0,96029.0,0.13412365]
[1739477388434,0.1723042,96030.0,96029.0,0.13112365]
[1739477388567,0.0161032,96030.0,96029.0,0.13412365]
[1739477388783,0.00015041,96030.0,96029.0,0.40702312]
[1739477389392,0.0160924,96030.0,96029.0,0.40402312]
[1739477389764,0.00015041,96030.0,96029.0,0.40702312]
[1739477390290,0.00015041,96030.0,96029.0,0.41483763]
[1739477390403,0.00015041,96030.0,96029.0,0.25863563]
[1739477392199,0.15635141,96030.0,96029.0,0.25863563]
[1739477393304,0.15635141,96030.0,96029.0,0.25082112]
[1739477396700,0.15635141,96030.0,96029.0,0.1087273]
[1739477397217,0.00015041,96030.0,96029.0,0.1087273]
[1739477397429,0.00015041,96030.0,96029.0,0.1890273]
[1739477398341,0.00015041,96030.0,96029.0,0.2383273]
[1739477398547,0.00015041,96030.0,96029.0,0.3945293]
[1739477398744,0.00015041,96030.0,96029.0,0.31943523]
[1739477399184,0.00015041,96030.0,96029.0,0.2383273]
[1739477400169,0.15635141,96030.0,96029.0,0.2383273]
[1739477404874,0.15635141,96030.0,96029.0,0.05552365]
[1739477405073,0.15635141,96030.0,96029.0,0.00622365]
[1739477405863,0.15635141,96030.0,96029.0,0.00322365]
[1739477406071,0.15635141,96030.0,96029.0,0.00022365]
[1739477406277,0.15635141,96030.0,96017.0,0.00022365]
[1739477406278,0.15622,96018.0,96017.0,0.00022365]
[1739477407009,0.15622,96018.0,96017.0,0.08885485]
[1739477408752,0.15622,96018.0,96017.0,0.00022365]
[1739477411537,0.15622,96018.0,96017.0,0.00022365]
[1739477412713,0.208271,96029.0,96017.0,0.00022365]
[1739477412893,0.00015041,96030.0,96018.0,0.0488]
[1739477412894,0.156219,96019.0,96018.0,0.0488]
[1739477413089,0.156219,96019.0,96018.0,0.15130365]
[1739477413293,0.00015041,96030.0,96018.0,0.2538073]
[1739477413492,0.00015041,96030.0,96024.0,0.156209]
[1739477413676,0.00015041,96030.0,96025.0,0.10250365]
[1739477413871,0.156203,96029.0,96025.0,0.10250365]
[1739477414146,0.156206,96027.0,96026.0,0.05501996]
[1739477414318,0.156206,96027.0,96026.0,0.10250365]
[1739477415508,0.208272,96028.0,96019.0,0.0832]
[1739477415712,0.156213,96023.0,96020.0,0.10250365]
[1739477415913,0.156214,96022.0,96020.0,0.10250365]
[1739477416114,0.156214,96022.0,96020.0,0.17270161]
[1739477416415,0.208281,96025.0,96020.0,0.17270161]
[1739477417031,0.156213,96023.0,96020.0,0.18270161]
[1739477417240,0.156213,96023.0,96020.0,0.17770161]
[1739477418358,0.156213,96023.0,96020.0,0.17270161]
[1739477418563,0.156213,96023.0,96021.0,0.07721756]
[1739477418776,0.156212,96023.0,96022.0,0.10250365]
[1739477419867,0.20828,96025.0,96022.0,0.10250365]
[1739477420095,0.156212,96023.0,96022.0,0.10250365]
[1739477420272,0.156212,96023.0,96022.0,0.11150365]
[1739477420429,0.156212,96023.0,96022.0,0.16695635]